bitfinex/quotes_SOLUSD_20250915
["timestamp","ask_amount","ask_price","bid_price","bid_amount"]
[1757904724423,0.06,243.14,243.13,32.0]
[1757904724629,0.06,243.14,243.13,32.69]
[1757904725263,0.06,243.14,243.13,36.80302595]
[1757904727473,0.06,243.14,243.13,36.11302595]
[1757904728057,0.06,243.14,243.13,5.76186455]
[1757904728233,2.18614946,243.14,243.13,37.76186455]
[1757904728563,1.52614946,243.14,243.13,37.76186455]
[1757904729039,0.06,243.14,243.13,37.76186455]
[1757904729236,0.06,243.14,243.13,38.45186455]
[1757904731964,0.06,243.14,243.13,37.76186455]
[1757904732168,0.06,243.14,243.13,52.04745856]
[1757904733261,0.06,243.14,243.13,51.35745856]
[1757904733760,0.06,243.14,243.13,52.04745856]
[1757904736862,0.06,243.14,243.13,5.76186455]
[1757904737160,0.06,243.14,243.13,38.45186455]
[1757904737951,0.06,243.14,243.13,37.76186455]
[1757904738347,0.77,243.14,243.13,37.76186455]
[1757904738745,0.06,243.14,243.13,37.76186455]
[1757904739149,0.06,243.14,243.13,5.76186455]
[1757904739449,2.23614946,243.14,243.13,37.76186455]
[1757904739639,2.23614946,243.14,243.13,1.6488386]
[1757904739842,2.23614946,243.14,243.13,32.0]
[1757904740360,0.77,243.14,243.13,32.0]
[1757904740563,2.23614946,243.14,243.13,32.0]
[1757904742747,0.77,243.14,243.13,32.0]
[1757904742946,2.23614946,243.14,243.13,32.0]
[1757904745569,2.23614946,243.14,243.09,12.36832883]
[1757904745871,1.46614946,243.1,243.05,0.69]
[1757904746166,1.46614946,243.08,243.06,32.69]
[1757904746473,1.46614946,243.08,243.07,32.0]
[1757904746962,1.46614946,243.08,243.07,36.11404122]
[1757904747855,0.93745825,243.08,243.06,12.36985878]
[1757904748067,0.93745825,243.07,243.02,24.57258408]
[1757904748263,0.93745825,243.06,243.04,12.37087895]
[1757904748456,0.93745825,243.06,243.05,32.0]
[1757904748960,0.93745825,243.07,243.05,32.0]
[1757904749176,0.71,243.12,243.06,0.69]
[1757904749478,0.93745825,243.07,243.06,0.69]
[1757904749772,0.93745825,243.07,243.06,32.0]
[1757904749989,0.93745825,243.07,243.06,36.11421048]
[1757904750372,0.93745825,243.07,243.06,32.0]
[1757904751459,0.93745825,243.07,243.06,33.64945052]
[1757904751673,0.93745825,243.07,243.06,5.763661]
[1757904751862,0.93745825,243.07,243.06,37.763661]
[1757904752976,0.93745825,243.08,243.06,38.453661]
[1757904753275,0.93745825,243.08,243.06,37.763661]
[1757904753950,0.93745825,243.08,243.06,36.11421048]
[1757904754158,0.93745825,243.07,243.06,36.11421048]
[1757904754357,0.93745825,243.07,243.06,4.11421048]
[1757904754676,0.93745825,243.07,243.06,36.11421048]
[1757904755046,0.93745825,243.07,243.06,32.0]
[1757904755458,1.64745825,243.07,243.06,32.0]
[1757904756376,0.93745825,243.07,243.06,32.0]
[1757904757775,0.93745825,243.07,243.0,12.3713891]
[1757904757776,1.64745825,243.07,243.0,12.3713891]
[1757904757970,0.93745825,243.01,243.0,16.48661543]
[1757904758158,0.93745825,243.03,243.0,49.17661543]
[1757904758352,0.93745825,243.03,243.01,0.69]
[1757904758570,0.67,243.07,243.02,32.0]
[1757904758769,28.7707297,243.09,243.03,0.69]
[1757904758973,0.93745825,243.06,243.04,32.0]
[1757904759177,0.93745825,243.06,243.05,0.69]
[1757904759476,26.93745825,243.09,243.05,0.69]
[1757904759676,26.93745825,243.09,243.06,31.98]
[1757904759883,26.93745825,243.09,243.07,4.11404122]
[1757904760080,26.93745825,243.09,243.08,32.0]
[1757904761698,1e-08,243.14,243.09,13.59559401]
[1757904761864,1e-08,243.14,243.13,14.53305226]
[1757904762195,1e-08,243.14,243.13,46.77305226]
[1757904762361,1e-08,243.14,243.13,15.22305226]
[1757904762559,1e-08,243.14,243.13,14.28559401]
[1757904762871,1e-08,243.14,243.13,47.46305226]
[1757904763269,1e-08,243.14,243.13,49.11161904]
[1757904763775,1e-08,243.14,243.13,20.98464499]
[1757904763981,1e-08,243.14,243.13,53.20464499]
[1757904765190,1e-08,243.14,243.13,37.98159273]
[1757904765693,1e-08,243.14,243.13,38.67159273]
[1757904766894,1e-08,243.14,243.13,4.11302595]
[1757904767064,0.67000001,243.14,243.13,32.2]
[1757904767269,1e-08,243.14,243.13,32.2]
[1757904771092,1e-08,243.14,243.12,4.11310065]
[1757904771268,1.60745826,243.14,243.13,32.2]
[1757904771463,0.93745826,243.14,243.1,4.11340639]
[1757904771677,0.93745825,243.13,243.11,32.18]
[1757904771985,1e-08,243.14,243.12,32.87]
[1757904772189,1e-08,243.14,243.12,32.18]
[1757904772679,1e-08,243.14,243.13,4.11302595]
[1757904775063,1e-08,243.14,243.13,36.27302595]
[1757904775263,1e-08,243.14,243.13,36.95302595]
[1757904775773,1e-08,243.14,243.13,37.8904842]
[1757904776481,1e-08,243.14,243.13,50.25626397]
[1757904777610,1e-08,243.14,243.13,48.63880572]
[1757904778113,1e-08,243.14,243.13,36.27302595]
[1757904778611,1e-08,243.14,243.13,36.95302595]
[1757904780096,1e-08,243.14,243.13,36.98302595]
[1757904780308,1e-08,243.14,243.13,37.9204842]
[1757904780514,1e-08,243.14,243.13,36.98302595]
[1757904780675,1e-08,243.14,243.13,37.9204842]
[1757904781000,1e-08,243.14,243.13,50.28626396]
[1757904781174,1e-08,243.14,243.13,49.34880571]
[1757904781371,1e-08,243.14,243.13,18.12626396]
[1757904781596,1e-08,243.14,243.13,16.50880571]
[1757904781771,1e-08,243.14,243.13,4.14302595]
[1757904781975,1e-08,243.14,243.13,36.28302595]
[1757904782519,1e-08,243.14,243.13,4.14302595]
[1757904782717,1e-08,243.14,243.13,32.17]
[1757904783000,1e-08,243.14,243.13,0.03]
[1757904783211,1e-08,243.14,243.13,32.17]
[1757904784226,135.95609804,243.32,243.14,13.59559401]
[1757904784409,0.93745825,243.24,243.17,0.93745825]
[1757904784593,1.62745825,243.24,243.19,4.11201118]
[1757904784787,1.62745825,243.24,243.2,32.24]
[1757904785034,0.69,243.23,243.19,4.11201118]
[1757904785208,0.69,243.23,243.2,32.24]
[1757904785604,2.76344058,243.31,243.19,4.11201118]
[1757904785605,1.62745825,243.22,243.21,32.22]
[1757904785814,0.69,243.22,243.21,32.22]
[1757904786014,0.93745825,243.23,243.21,32.22]
[1757904786317,0.93745825,243.24,243.21,32.22]
[1757904786504,0.93745825,243.25,243.21,32.22]
[1757904786699,0.93745825,243.25,243.22,4.11150398]
[1757904787024,0.93745825,243.25,243.23,32.22]
[1757904788200,0.93745825,243.26,243.23,32.22]
[1757904788518,1.60745825,243.25,243.23,32.22]
[1757904788819,0.93745825,243.25,243.21,4.11166231]
[1757904789028,1.60745825,243.24,243.22,32.2]
[1757904789230,3.25342536,243.32,243.17,4.81220766]
[1757904789231,1.60745825,243.23,243.17,4.81220766]
[1757904789443,1.60745825,243.23,243.17,15.32989072]
[1757904789608,0.93745825,243.21,243.18,32.2]
[1757904789928,0.67,243.2,243.16,4.11247917]
[1757904790123,0.93745825,243.21,243.17,32.2]
[1757904790306,0.93745825,243.22,243.16,4.81247917]
[1757904790502,0.93745825,243.22,243.18,32.2]
[1757904790815,1.60745825,243.22,243.18,36.31216867]
[1757904791333,0.93745825,243.21,243.18,36.31215941]
[1757904792038,0.67,243.21,243.19,32.2]
[1757904792205,0.67,243.21,243.2,32.2]
[1757904793228,27.60745825,243.21,243.2,32.2]
[1757904793429,26.67,243.21,243.2,32.2]
[1757904793633,27.60745825,243.21,243.14,4.8128374]
[1757904793932,0.93745825,243.18,243.14,4.8128374]
[1757904794147,0.93745825,243.15,243.13,12.39577976]
[1757904794307,0.67,243.17,243.14,32.18]
[1757904794645,0.93745825,243.15,243.14,32.18]
[1757904794803,1.60745825,243.15,243.13,0.03]
[1757904794998,0.67,243.15,243.14,32.2]
[1757904795202,0.67,243.17,243.14,32.2]
[1757904795729,0.67,243.16,243.15,32.2]
[1757904796112,1.60745825,243.16,243.15,32.2]
[1757904796310,0.67,243.16,243.15,32.2]
[1757904796507,0.93745825,243.16,243.13,0.03]
[1757904796709,0.93745825,243.14,243.13,29.83]
[1757904797024,27.60745825,243.14,243.13,29.83]
[1757904797805,1.60745825,243.14,243.13,29.83]
[1757904798217,0.93745825,243.14,243.13,32.23]
[1757904798407,0.06,243.15,243.13,32.23]
[1757904798607,0.93745825,243.14,243.13,32.23]
[1757904798815,0.93745825,243.14,243.13,32.93]
[1757904800034,0.93745825,243.14,243.13,0.03]
[1757904800333,0.93745825,243.14,243.13,32.23]
[1757904801633,26.93745825,243.14,243.13,0.03]
[1757904801828,26.93745825,243.14,243.13,32.23]
[1757904802031,26.93745825,243.14,243.13,0.03]
[1757904802230,0.93745825,243.14,243.13,0.03]
[1757904802429,5.98777329,243.14,243.13,0.03]
[1757904802637,8.75371608,243.14,243.13,0.03]
[1757904802832,19.70585805,243.14,243.1,0.03]
[1757904803034,26.93745825,243.11,243.1,0.03]
[1757904803441,27.60745825,243.11,243.1,0.03]
[1757904804045,31.72082257,243.11,243.1,0.03]
[1757904804553,31.72082257,243.11,243.01,29.64]
[1757904804846,0.67,243.1,243.02,32.18]
[1757904805068,0.93745825,243.04,243.02,32.18]
[1757904805347,0.93745825,243.04,243.03,0.7]
[1757904805921,0.93745825,243.04,243.02,32.18]
[1757904806121,0.93745825,243.03,243.02,32.18]
[1757904808456,0.93745825,243.03,243.02,32.16]
[1757904808832,0.93745825,243.03,243.02,32.18]
[1757904809849,1.46560452,243.03,243.02,32.18]
[1757904815765,1.46560452,243.03,243.02,32.88]
[1757904816340,1.46560452,243.03,243.02,32.21]
[1757904818250,1.46560452,243.03,243.02,32.91]
[1757904819562,26.0,243.05,243.02,32.91]
[1757904819742,1.46560452,243.03,243.02,32.91]
[1757904822941,1.46560452,243.03,243.02,32.81]
[1757904831360,1.46560452,243.03,243.02,32.07]
[1757904834568,26.0,243.05,243.02,0.03]
[1757904834778,1.46560452,243.03,243.02,0.03]
[1757904835764,2.14560452,243.03,243.02,0.03]
[1757904837481,26.0,243.05,243.02,0.03]
[1757904837660,1.46560452,243.03,243.02,0.03]
[1757904843680,2.14560452,243.03,243.02,0.03]
[1757904843992,2.14560452,243.03,242.99,0.03]
[1757904843993,26.0,243.0,242.99,0.03]
[1757904844191,31.7042357,243.0,242.99,0.03]
[1757904844388,36.49946203,243.0,242.99,0.03]
[1757904845100,50.09505604,243.0,242.99,0.03]
[1757904846193,50.09505604,243.0,242.96,0.03]
[1757904846389,1.46560452,242.98,242.96,0.03]
[1757904846589,4.23863118,242.98,242.96,0.03]
[1757904846793,4.91863118,242.98,242.96,0.03]
[1757904847871,9.03419624,242.98,242.96,0.03]
[1757904848098,4.23863118,242.97,242.96,0.03]
[1757904848297,4.23863118,242.97,242.94,0.03]
[1757904848298,26.0,242.95,242.94,0.03]
[1757904848503,43.83422519,242.95,242.94,0.03]
[1757904848798,44.51422519,242.95,242.94,0.03]
[1757904849600,4.23863118,242.95,242.94,0.03]
[1757904849898,1.46560452,242.95,242.94,0.69]
[1757904850277,26.0,242.96,242.94,0.69]
[1757904850605,1.46560452,242.98,242.94,4.80623971]
[1757904850793,26.0,242.96,242.94,4.14623971]
[1757904850993,26.0,242.96,242.95,0.66]
[1757904851379,27.46560452,242.96,242.95,0.66]
[1757904851783,27.46560452,242.96,242.94,0.03]
[1757904851996,1.46560452,242.95,242.94,0.03]
[1757904852911,1.46560452,242.95,242.94,0.69]
[1757904853702,1.46560452,242.95,242.94,0.03]
[1757904853891,1.46560452,242.95,242.94,0.69]
[1757904854078,27.46560452,242.96,242.94,0.69]
[1757904854281,27.46560452,242.96,242.95,0.66]
[1757904855007,30.91075818,242.96,242.94,0.03]
[1757904855298,1.46560452,242.95,242.94,0.03]
[1757904856797,6.26167778,242.95,242.94,0.03]
[1757904856995,1.46560452,242.95,242.94,0.03]
[1757904857585,5.58167778,242.95,242.94,0.03]
[1757904858588,6.26167778,242.95,242.94,0.03]
[1757904859099,2.14560452,242.95,242.94,0.03]
[1757904859304,6.26167778,242.95,242.94,0.03]
[1757904860406,5.58167778,242.95,242.94,0.03]
[1757904861327,1.46560452,242.95,242.94,0.03]
[1757904862912,5.58167778,242.95,242.94,0.03]
[1757904863112,152.35727179,242.95,242.94,0.03]
[1757904864406,13.59559401,242.94,242.92,0.03]
[1757904864720,15.06119853,242.93,242.92,0.03]
[1757904864895,15.74119853,242.93,242.92,0.03]
[1757904865095,27.46560452,242.93,242.92,0.69]
[1757904867314,27.46560452,242.93,242.92,0.03]
[1757904868713,27.46560452,242.93,242.92,0.69]
[1757904871828,26.9386825,242.93,242.92,0.69]
[1757904872831,26.9386825,242.93,242.92,0.03]
[1757904880639,0.9386825,242.93,242.92,0.03]
[1757904882535,26.9386825,242.93,242.92,0.74]
[1757904882733,26.9386825,242.93,242.92,0.03]
[1757904883640,48.08111026,242.93,242.92,0.03]
[1757904885944,47.14242776,242.93,242.92,0.03]
[1757904886247,48.08111026,242.93,242.92,0.03]
[1757904887922,29.70910412,242.93,242.92,0.74]
[1757904889038,28.77042162,242.93,242.92,0.74]
[1757904889239,29.70910412,242.93,242.92,0.74]
[1757904889440,29.76910412,242.93,242.92,0.74]
[1757904890439,29.76910412,242.93,242.92,0.03]
[1757904890831,3.76910412,242.93,242.92,0.03]
[1757904891650,29.76910412,242.93,242.92,0.03]
[1757904893323,28.83042162,242.93,242.92,0.74]
[1757904893524,29.76910412,242.93,242.92,0.74]
[1757904893749,29.76910412,242.93,242.92,0.03]
[1757904895845,29.76910412,242.93,242.92,0.71]
[1757904897149,29.76910412,242.93,242.92,0.03]
[1757904897725,3.76910412,242.93,242.92,0.03]
[1757904897935,33.88551625,242.93,242.92,0.03]
[1757904898136,8.53551625,242.93,242.92,0.03]
[1757904898340,8.54331251,242.93,242.92,0.03]
[1757904898647,33.89331251,242.93,242.92,0.03]
[1757904898942,28.83821788,242.93,242.92,0.03]
[1757904899144,29.77690038,242.93,242.92,0.03]
[1757904899446,3.77690038,242.93,242.92,0.03]
[1757904900347,33.89331251,242.93,242.92,0.03]
[1757904901657,51.61167888,242.93,242.92,0.03]
[1757904903253,48.13890652,242.93,242.92,0.03]
[1757904904031,51.61167888,242.93,242.92,0.03]
[1757904906358,28.83821788,242.93,242.92,0.71]
[1757904906679,3.77690038,242.93,242.92,0.71]
[1757904914564,29.77690038,242.93,242.92,0.71]
[1757904916862,2.83821788,242.93,242.92,4.82658159]
[1757904917062,0.06,242.93,242.92,0.71]
[1757904917366,0.9986825,242.93,242.92,0.03]
[1757904917560,3.77521742,242.93,242.92,0.03]
[1757904918062,3.77521742,242.93,242.92,0.72]
[1757904918641,3.77521742,242.93,242.92,0.03]
[1757904918844,4.49521742,242.93,242.92,0.03]
[1757904919147,8.61162955,242.93,242.92,0.03]
[1757904919642,26.0,242.91,242.9,0.03]
[1757904919965,29.71521742,242.91,242.9,0.03]
[1757904920174,51.25831379,242.91,242.9,0.03]
[1757904920468,52.42218808,242.91,242.9,0.03]
[1757904920765,56.53893914,242.91,242.9,0.03]
[1757904921268,51.84552664,242.91,242.9,0.03]
[1757904921571,52.78420914,242.91,242.9,0.03]
[1757904922148,60.0117115,242.91,242.9,0.03]
[1757904922346,13.59559401,242.9,242.89,0.03]
[1757904922569,24.53590793,242.9,242.89,0.03]
[1757904922772,25.25590793,242.9,242.89,0.03]
[1757904924270,21.78554143,242.9,242.89,0.03]
[1757904925556,17.31081143,242.9,242.89,0.03]
[1757904925748,149.81081143,242.9,242.89,0.03]
[1757904927171,154.28554143,242.9,242.89,0.03]
[1757904928682,39.59559401,242.87,242.85,0.03]
[1757904928882,17.31081143,242.86,242.85,0.03]
[1757904929683,17.31081143,242.86,242.85,0.72]
[1757904930063,17.31081143,242.86,242.85,0.03]
[1757904930453,24.65320365,242.86,242.85,0.03]
[1757904930766,7.83281603,242.86,242.85,0.03]
[1757904931351,7.83281603,242.86,242.85,0.72]
[1757904931567,7.83281603,242.86,242.85,0.03]
[1757904932180,3.38046392,242.91,242.85,1.6586825]
[1757904932367,0.06,242.96,242.89,4.11709004]
[1757904932555,0.9986825,242.96,242.9,0.9386825]
[1757904932748,0.06,242.96,242.9,1.4886825]
[1757904932949,0.06,242.96,242.91,1.4886825]
[1757904933148,0.06,242.96,242.92,0.9386825]
[1757904933461,0.06,242.96,242.92,1.4886825]
[1757904933849,0.06,242.96,242.92,2.01592091]
[1757904934554,0.06,242.96,242.92,6.1325025]
[1757904936579,1e-08,242.93,242.92,6.54416065]
[1757904936752,1e-08,242.93,242.92,51.74809651]
[1757904939462,1e-08,242.93,242.92,53.39815941]
[1757904940184,1e-08,242.93,242.92,7.7825654]
[1757904940765,1e-08,242.93,242.92,4.11658159]
[1757904940960,1e-08,242.93,242.91,32.02]
[1757904941580,1e-08,242.93,242.89,1.65040331]
[1757904941755,1.46592091,242.92,242.88,32.02]
[1757904942170,1.46592091,242.91,242.88,32.02]
[1757904942365,1.46592091,242.9,242.88,32.02]
[1757904942863,26.00000001,242.93,242.88,32.02]
[1757904942864,2.18592091,242.89,242.88,32.02]
[1757904943062,1.46592091,242.89,242.88,32.02]
[1757904944492,2.18592091,242.89,242.88,32.02]
[1757904944782,1.46592091,242.89,242.88,32.02]
[1757904947480,2.18592091,242.89,242.85,0.03]
[1757904947659,1.46592091,242.87,242.85,0.03]
[1757904947980,1.46592091,242.86,242.85,0.03]
[1757904948179,2.18592091,242.86,242.85,0.03]
[1757904948483,1.46592091,242.86,242.85,0.03]
[1757904949766,0.72,242.91,242.85,0.03]
[1757904950070,1.46592091,242.88,242.85,0.03]
[1757904950466,2.18592091,242.88,242.85,0.03]
[1757904954689,1.46592091,242.87,242.85,0.03]
[1757904957201,2.12592091,242.87,242.85,0.03]
[1757904957614,26.00000001,242.93,242.85,0.03]
[1757904957785,1.46592091,242.87,242.85,0.03]
[1757904958713,2.12592091,242.87,242.85,0.03]
[1757904959817,0.66,242.87,242.85,0.03]
[1757904960113,2.12592091,242.87,242.85,0.03]
[1757904961607,1.46592091,242.87,242.85,0.03]
[1757904961815,2.12592091,242.87,242.85,0.03]
[1757904962003,0.66,242.87,242.85,0.03]
[1757904962411,1.46592091,242.87,242.85,0.03]
[1757904962714,0.66,242.86,242.85,0.03]
[1757904964516,2.12592091,242.86,242.85,0.03]
[1757904965792,0.66,242.86,242.85,0.03]
[1757904966206,1.46592091,242.87,242.85,0.03]
[1757904966420,0.66,242.86,242.85,0.03]
[1757904966597,2.12592091,242.86,242.85,0.03]
[1757904968198,32.24351952,242.86,242.85,0.03]
[1757904969298,45.83911353,242.86,242.85,0.03]
[1757904969494,48.60620401,242.86,242.85,0.03]
[1757904970300,80.62620401,242.86,242.85,0.03]
[1757904970912,213.12620401,242.86,242.85,0.03]
[1757904973929,181.10620401,242.86,242.85,0.03]
[1757904974116,213.12620401,242.86,242.85,0.03]
[1757904974720,181.10620401,242.86,242.85,0.03]
[1757904975029,213.12620401,242.86,242.85,0.03]
[1757904976128,39.59559401,242.83,242.82,0.03]
[1757904976336,13.59559401,242.82,242.8,0.03]
[1757904976518,1.46592091,242.81,242.8,0.03]
[1757904977033,35.79802838,242.81,242.8,0.03]
[1757904977229,38.56511886,242.81,242.8,0.03]
[1757904977526,42.68356538,242.81,242.8,0.03]
[1757904978328,56.306079,242.81,242.77,0.03]
[1757904978534,27.46592091,242.78,242.77,0.03]
[1757904978736,74.54743583,242.78,242.77,0.03]
[1757904978929,77.9704393,242.78,242.77,0.03]
[1757904979130,45.9504393,242.78,242.77,0.03]
[1757904979326,26.66,242.78,242.77,0.03]
[1757904979527,32.24487634,242.78,242.77,0.03]
[1757904979713,26.0,242.78,242.77,0.03]
[1757904980037,27.46592091,242.78,242.77,0.03]
[1757904982140,31.58487634,242.78,242.77,0.03]
[1757904988631,32.24487634,242.78,242.77,0.03]
[1757904990829,28.12592091,242.78,242.77,0.03]
[1757904991143,27.46592091,242.79,242.77,0.58]
[1757904991621,27.46592091,242.79,242.78,0.55]
[1757904992422,1.46592091,242.82,242.78,0.55]
[1757904992621,1.46592091,242.82,242.77,0.03]
[1757904992836,26.0,242.81,242.78,0.55]
[1757904993045,1.46592091,242.82,242.78,0.55]
[1757904993248,27.46592091,242.82,242.78,0.55]
[1757904993742,26.0,242.81,242.78,0.55]
[1757904993932,1.46592091,242.82,242.78,0.55]
[1757904994143,1.46592091,242.8,242.77,0.03]
[1757904994364,0.66,242.81,242.77,0.03]
[1757904994365,1.46592091,242.78,242.77,0.03]
[1757904995850,0.93996743,242.78,242.77,0.03]
[1757904997162,0.93996743,242.78,242.77,0.58]
[1757904997336,0.93996743,242.78,242.77,0.03]
[1757905001760,0.93996743,242.81,242.77,0.58]
[1757905001952,0.93996743,242.81,242.78,0.55]
[1757905002154,0.93996743,242.79,242.77,0.03]
[1757905003156,1.62996743,242.79,242.77,0.03]
[1757905003463,0.69,242.78,242.77,0.03]
[1757905006471,1.62996743,242.78,242.77,0.03]
[1757905007277,0.93996743,242.78,242.77,0.03]
[1757905007979,1.68996743,242.8,242.77,0.03]
[1757905008168,0.69,242.79,242.77,0.03]
[1757905008666,0.99996743,242.8,242.77,0.03]
[1757905008858,1.68996743,242.8,242.77,0.03]
[1757905009174,0.69,242.79,242.77,0.03]
[1757905009387,26.69,242.79,242.77,0.03]
[1757905010068,26.0,242.79,242.77,0.03]
[1757905010674,26.69,242.79,242.77,0.03]
[1757905012470,0.93996743,242.78,242.77,0.03]
[1757905016372,1.62996743,242.78,242.77,0.03]
[1757905020791,0.93996743,242.79,242.77,0.03]
[1757905021085,1.62996743,242.79,242.77,0.03]
[1757905021873,0.06,242.8,242.77,0.03]
[1757905022378,0.75,242.8,242.77,0.03]
[1757905022680,0.69,242.79,242.77,0.03]
[1757905023062,0.69,242.78,242.77,0.03]
[1757905026480,4.80895543,242.78,242.77,0.03]
[1757905026658,4.40878328,242.78,242.77,0.03]
[1757905027875,8.52773871,242.78,242.77,0.03]
[1757905029365,9.46770614,242.78,242.77,0.03]
[1757905030071,26.0,242.75,242.74,0.03]
[1757905030274,29.71878328,242.75,242.74,0.03]
[1757905030464,34.53824774,242.75,242.74,0.03]
[1757905030666,8.53824774,242.75,242.74,0.03]
[1757905031882,34.53824774,242.75,242.74,0.03]
[1757905032068,29.71878328,242.75,242.74,0.03]
[1757905032467,0.93996743,242.75,242.74,0.58]
[1757905033986,0.93996743,242.75,242.74,0.03]
[1757905038379,1.63996743,242.75,242.74,0.03]
[1757905038971,8.53763602,242.75,242.74,0.03]
[1757905040389,22.13323003,242.75,242.74,0.03]
[1757905040580,0.93996743,242.73,242.72,0.03]
[1757905040785,3.71817156,242.73,242.72,0.03]
[1757905041062,4.41817156,242.73,242.72,0.03]
[1757905041595,18.01376557,242.73,242.72,0.03]
[1757905041805,26.0,242.72,242.71,0.2]
[1757905041973,28.77820413,242.72,242.71,0.2]
[1757905042164,26.0,242.68,242.67,0.2]
[1757905042369,26.93996743,242.68,242.67,0.2]
[1757905042592,34.53654766,242.68,242.67,0.2]
[1757905044268,31.76062014,242.68,242.67,0.2]
[1757905044999,34.53384154,242.68,242.67,0.2]
[1757905045175,31.76062014,242.68,242.67,0.2]
[1757905047177,34.53194168,242.68,242.67,0.2]
[1757905047697,45.77354088,242.68,242.65,0.2]
[1757905047865,1.87993486,242.66,242.65,0.2]
[1757905048070,4.6512564,242.66,242.65,0.2]
[1757905048286,2.57993486,242.66,242.65,0.2]
[1757905048694,6.70092719,242.66,242.65,0.2]
[1757905049292,18.41658634,242.66,242.65,0.2]
[1757905049598,25.88774503,242.66,242.6,0.2]
[1757905049799,23.11642349,242.66,242.6,0.2]
[1757905050185,0.7,242.65,242.6,0.2]
[1757905052274,4.6367084,242.67,242.61,0.55]
[1757905052477,0.93996743,242.65,242.64,0.75]
[1757905053276,26.0,242.66,242.64,0.75]
[1757905053491,0.93996743,242.65,242.64,0.75]
[1757905054694,1.65996743,242.65,242.64,0.2]
[1757905054903,0.93996743,242.65,242.64,0.2]
[1757905055284,5.78112959,242.65,242.64,0.2]
[1757905055883,32.31177952,242.65,242.64,0.2]
[1757905056504,33.78239688,242.65,242.64,0.2]
[1757905057600,1.47061736,242.61,242.6,0.2]
[1757905059491,5.59245899,242.61,242.6,0.2]
[1757905060420,27.47061736,242.61,242.6,0.2]
[1757905062025,5.59245899,242.61,242.6,0.2]
[1757905062222,6.31245899,242.61,242.6,0.2]
[1757905062430,16.61706308,242.61,242.57,0.06]
[1757905062593,1.47061736,242.58,242.57,0.06]
[1757905063000,2.19061736,242.58,242.57,0.06]
[1757905063999,26.0,242.56,242.55,0.06]
[1757905064207,28.94123472,242.56,242.55,0.06]
[1757905064418,29.66123472,242.56,242.55,0.06]
[1757905065633,29.66123472,242.56,242.49,0.2]
[1757905065929,1.47061736,242.5,242.49,0.2]
[1757905066100,27.47061736,242.5,242.49,0.2]
[1757905066294,5.59415006,242.52,242.49,0.2]
[1757905066295,1.47061736,242.51,242.49,0.75]
[1757905066503,1.47061736,242.51,242.5,0.55]
[1757905066817,1.47061736,242.53,242.5,0.55]
[1757905067615,1.47061736,242.51,242.49,4.32388139]
[1757905068229,1.47061736,242.51,242.5,0.55]
[1757905069731,0.72,242.58,242.5,4.67371134]
[1757905069732,1.47061736,242.52,242.5,4.67371134]
[1757905069932,1.47061736,242.52,242.51,0.55]
[1757905073536,1.47061736,242.52,242.51,4.67354129]
[1757905073913,1.47061736,242.52,242.49,4.87371848]
[1757905074129,1.47061736,242.52,242.5,0.55]
[1757905074326,1.47061736,242.52,242.49,0.2]
[1757905074532,1.47061736,242.5,242.49,0.2]
[1757905074929,2.19061736,242.5,242.49,0.2]
[1757905075319,28.19061736,242.5,242.49,0.2]
[1757905076023,1.47061736,242.5,242.49,0.2]
[1757905078142,1.47061736,242.53,242.49,0.75]
[1757905078332,1.47061736,242.53,242.5,0.55]
[1757905078514,1.47061736,242.53,242.51,0.55]